Workbook

Sheet Barcodes
A1: Print | B1: *2000006* | C1: Feature Sandwich - 7.49 | D1: GG_7
A2: SKU # | B2: Bar Code
A3: 2000000 | B3: *2000000* | C3: Entrée - Chef - 6.49 | D3: GG_1 | H3: =C3 -> Entrée - Chef - 6.49 | I3: =D3 -> GG_1 | J3: 0
A4: =Barcodes_old!A3+1 -> 2000001 | B4: *2000001* | C4: Feature Entree includes Eska Water - 8.49 | D4: GG_2 | H4: =C4 -> Feature Entree includes Eska Water - 8.49 | I4: =D4 -> GG_2 | J4: 0
A5: =Barcodes_old!A4+1 -> 2000002 | B5: *2000002* | C5: Pasta Large - 5.75 | D5: GG_3 | H5: Pasta Large - 5.75 | I5: GG_3 | J5: 0
A6: =Barcodes_old!A5+1 -> 2000003 | B6: *2000003* | C6: Pasta Small - 4.17 | D6: GG_4 | H6: Pasta Small - 4.17 | I6: GG_4 | J6: 0
A7: =Barcodes_old!A6+1 -> 2000004 | B7: *2000004* | C7: Side of Potatoes & Vegetables - 1.49 | D7: GG_5 | H7: Side of Potatoes & Vegetables - 1.49 | I7: GG_5 | J7: 0
A8: =Barcodes_old!A7+1 -> 2000005 | B8: *2000005* | C8: Premium Entrée (Umami - Pho/Miso, Noodle, Rice Bowls) - 9.99 | D8: GG_6 | H8: Premium Entrée (Umami - Pho/Miso, Noodle, Rice Bowls) - 9.99 | I8: GG_6 | J8: 0
A9: =Barcodes_old!A8+1 -> 2000006 | B9: *2000006* | C9: Feature Sandwich - 7.49 | D9: GG_7 | H9: Feature Sandwich - 7.49 | I9: GG_7 | J9: 0
A10: =Barcodes_old!A9+1 -> 2000007 | B10: *2000007* | C10: Panini With Veggies - 5.65 | D10: GG_8 | H10: Panini With Veggies - 5.65 | I10: GG_8 | J10: 0
A11: =Barcodes_old!A10+1 -> 2000008 | B11: *2000008* | C11: Grilled Wrap - 5.65 | D11: GG_9 | H11: Grilled Wrap - 5.65 | I11: GG_9 | J11: 0
A12: =Barcodes_old!A11+1 -> 2000009 | B12: *2000009* | C12: Panini with Meat, Veggies and Cheese - 6.65 | D12: GG_10 | H12: Panini with Meat, Veggies and Cheese - 6.65 | I12: GG_10 | J12: 0
A13: =Barcodes_old!A12+1 -> 2000010 | B13: *2000010* | C13: Fresh Made Kettle Chips (3 oz) - 1.49 | D13: GG_11 | H13: Fresh Made Kettle Chips (3 oz) - 1.49 | I13: GG_11 | J13: 0
A14: =Barcodes_old!A13+1 -> 2000011 | B14: *2000011* | C14: Loaf Slice basic - 1.89 | D14: GG_12
A15: =Barcodes_old!A14+1 -> 2000012 | B15: *2000012* | C15: Tarts Basic (AP - Granny) - 1.39 | D15: GG_13 | H15: =C15 -> Tarts Basic (AP - Granny) - 1.39 | I15: =D15 -> GG_13 | J15: 0
A16: =Barcodes_old!A15+1 -> 2000013 | B16: *2000013* | C16: Squares - 1.99 | D16: GG_14
A17: =Barcodes_old!A16+1 -> 2000014 | B17: *2000014* | C17: Craveworthy Cookie - 1.99 | D17: GG_15
A18: =Barcodes_old!A17+1 -> 2000015 | B18: *2000015*
A19: =Barcodes_old!A18+1 -> 2000016 | B19: *2000016* | H19: =C19 -> 0 | I19: =D19 -> 0 | J19: 0
A20: =Barcodes_old!A19+1 -> 2000017 | B20: *2000017* | H20: 0 | I20: 0 | J20: 0
A21: =Barcodes_old!A20+1 -> 2000018 | B21: *2000018* | H21: 0 | I21: 0 | J21: 0
A22: =Barcodes_old!A21+1 -> 2000019 | B22: *2000019*
A23: =Barcodes_old!A22+1 -> 2000020 | B23: *2000020* | H23: =C23 -> 0 | I23: =D23 -> 0 | J23: 2
A24: =Barcodes_old!A23+1 -> 2000021 | B24: *2000021* | H24: =C24 -> 0 | I24: =D24 -> 0 | J24: 2
A25: =Barcodes_old!A24+1 -> 2000022 | B25: *2000022* | H25: 0 | I25: 0 | J25: 2
A26: =Barcodes_old!A25+1 -> 2000023 | B26: *2000023* | H26: 0 | I26: 0 | J26: 2
A27: =Barcodes_old!A26+1 -> 2000024 | B27: *2000024* | H27: 0 | I27: 0 | J27: 2
A28: =Barcodes_old!A27+1 -> 2000025 | B28: *2000025* | H28: 0 | I28: 0 | J28: 2
A29: =Barcodes_old!A28+1 -> 2000026 | B29: *2000026* | H29: 0 | I29: 0 | J29: 2
A30: =Barcodes_old!A29+1 -> 2000027 | B30: *2000027* | H30: 0 | I30: 0 | J30: 2
A31: =Barcodes_old!A30+1 -> 2000028 | B31: *2000028* | H31: 0 | I31: 0 | J31: 2
A32: =Barcodes_old!A31+1 -> 2000029 | B32: *2000029* | H32: 0 | I32: 0 | J32: 2
A33: =Barcodes_old!A32+1 -> 2000030 | B33: *2000030*
A34: =Barcodes_old!A33+1 -> 2000031 | B34: *2000031*
A35: =Barcodes_old!A34+1 -> 2000032 | B35: *2000032* | H35: =C35 -> 0 | I35: =D35 -> 0 | J35: 0
A36: =Barcodes_old!A35+1 -> 2000033 | B36: *2000033*
A37: =Barcodes_old!A36+1 -> 2000034 | B37: *2000034* | H37: =C37 -> 0 | I37: =D37 -> 0 | J37: 0
A38: =Barcodes_old!A37+1 -> 2000035 | B38: *2000035*
A39: =Barcodes_old!A38+1 -> 2000036 | B39: *2000036*
A40: =Barcodes_old!A39+1 -> 2000037 | B40: *2000037*
A41: =Barcodes_old!A40+1 -> 2000038 | B41: *2000038*
A42: =Barcodes_old!A41+1 -> 2000039 | B42: *2000039*
A43: =Barcodes_old!A42+1 -> 2000040 | B43: *2000040*
A44: =Barcodes_old!A43+1 -> 2000041 | B44: *2000041* | H44: =C44 -> 0 | I44: =D44 -> 0 | J44: 0
A45: =Barcodes_old!A44+1 -> 2000042 | B45: *2000042*
A46: =Barcodes_old!A45+1 -> 2000043 | B46: *2000043*
A47: =Barcodes_old!A46+1 -> 2000044 | B47: *2000044*
A48: =Barcodes_old!A47+1 -> 2000045 | B48: *2000045*
A49: =Barcodes_old!A48+1 -> 2000046 | B49: *2000046*
A50: =Barcodes_old!A49+1 -> 2000047 | B50: *2000047*
A51: =Barcodes_old!A50+1 -> 2000048 | B51: *2000048*
A52: =Barcodes_old!A51+1 -> 2000049 | B52: *2000049*
A53: =Barcodes_old!A52+1 -> 2000050 | B53: *2000050*
A54: =Barcodes_old!A53+1 -> 2000051 | B54: *2000051* | H54: =C54 -> 0 | I54: =D54 -> 0 | J54: 2
A55: =Barcodes_old!A54+1 -> 2000052 | B55: *2000052* | H55: =C55 -> 0 | I55: =D55 -> 0 | J55: 2
A56: =Barcodes_old!A55+1 -> 2000053 | B56: *2000053* | H56: 0 | I56: 0 | J56: 2
A57: =Barcodes_old!A56+1 -> 2000054 | B57: *2000054* | H57: 0 | I57: 0 | J57: 2
A58: =Barcodes_old!A57+1 -> 2000055 | B58: *2000055* | H58: 0 | I58: 0 | J58: 2
A59: =Barcodes_old!A58+1 -> 2000056 | B59: *2000056* | H59: 0 | I59: 0 | J59: 2
A60: =Barcodes_old!A59+1 -> 2000057 | B60: *2000057*
A61: =Barcodes_old!A60+1 -> 2000058 | B61: *2000058*
A62: =Barcodes_old!A61+1 -> 2000059 | B62: *2000059*
A63: =Barcodes_old!A62+1 -> 2000060 | B63: *2000060*
A64: =Barcodes_old!A63+1 -> 2000061 | B64: *2000061*
A65: =Barcodes_old!A64+1 -> 2000062 | B65: *2000062*
A66: =Barcodes_old!A65+1 -> 2000063 | B66: *2000063*
A67: =Barcodes_old!A66+1 -> 2000064 | B67: *2000064*
A68: =Barcodes_old!A67+1 -> 2000065 | B68: *2000065*
A69: =Barcodes_old!A68+1 -> 2000066 | B69: *2000066*
A70: =Barcodes_old!A69+1 -> 2000067 | B70: *2000067*
A71: =Barcodes_old!A70+1 -> 2000068 | B71: *2000068* | H71: =C71 -> 0 | I71: =D71 -> 0 | J71: 0
A72: =Barcodes_old!A71+1 -> 2000069 | B72: *2000069* | H72: =C72 -> 0 | I72: =D72 -> 0 | J72: 0
A73: =Barcodes_old!A72+1 -> 2000070 | B73: *2000070* | H73: 0 | I73: 0 | J73: 0
A74: =Barcodes_old!A73+1 -> 2000071 | B74: *2000071*
A75: =Barcodes_old!A74+1 -> 2000072 | B75: *2000072*
A76: =Barcodes_old!A75+1 -> 2000073 | B76: *2000073*
A77: =Barcodes_old!A76+1 -> 2000074 | B77: *2000074*
A78: =Barcodes_old!A77+1 -> 2000075 | B78: *2000075*
A79: =Barcodes_old!A78+1 -> 2000076 | B79: *2000076*
A80: =Barcodes_old!A79+1 -> 2000077 | B80: *2000077*
A81: =Barcodes_old!A80+1 -> 2000078 | B81: *2000078*
A82: =Barcodes_old!A81+1 -> 2000079 | B82: *2000079*
A83: =Barcodes_old!A82+1 -> 2000080 | B83: *2000080*
A84: =Barcodes_old!A83+1 -> 2000081 | B84: *2000081*
A85: =Barcodes_old!A84+1 -> 2000082 | B85: *2000082*
A86: =Barcodes_old!A85+1 -> 2000083 | B86: *2000083*
A87: =Barcodes_old!A86+1 -> 2000084 | B87: *2000084*
A88: =Barcodes_old!A87+1 -> 2000085 | B88: *2000085*
A89: =Barcodes_old!A88+1 -> 2000086 | B89: *2000086*
A90: =Barcodes_old!A89+1 -> 2000087 | B90: *2000087*
A91: =Barcodes_old!A90+1 -> 2000088 | B91: *2000088* | H91: =C91 -> 0 | I91: =D91 -> 0 | J91: 0
A92: =Barcodes_old!A91+1 -> 2000089 | B92: *2000089*
A93: =Barcodes_old!A92+1 -> 2000090 | B93: *2000090*
A94: =Barcodes_old!A93+1 -> 2000091 | B94: *2000091*
A95: =Barcodes_old!A94+1 -> 2000092 | B95: *2000092*
A96: =Barcodes_old!A95+1 -> 2000093 | B96: *2000093*
A97: =Barcodes_old!A96+1 -> 2000094 | B97: *2000094*
A98: =Barcodes_old!A97+1 -> 2000095 | B98: *2000095*
A99: =Barcodes_old!A98+1 -> 2000096 | B99: *2000096*
A100: =Barcodes_old!A99+1 -> 2000097 | B100: *2000097*
A101: =Barcodes_old!A100+1 -> 2000098 | B101: *2000098*
A102: =Barcodes_old!A101+1 -> 2000099 | B102: *2000099*
A103: =Barcodes_old!A102+1 -> 2000100 | B103: *2000100*
A104: =Barcodes_old!A103+1 -> 2000101 | B104: *2000101*
A105: =Barcodes_old!A104+1 -> 2000102 | B105: *2000102*
A106: =Barcodes_old!A105+1 -> 2000103 | B106: *2000103*
A107: =Barcodes_old!A106+1 -> 2000104 | B107: *2000104*
A108: =Barcodes_old!A107+1 -> 2000105 | B108: *2000105*
A109: =Barcodes_old!A108+1 -> 2000106 | B109: *2000106*
A110: =Barcodes_old!A109+1 -> 2000107 | B110: *2000107*
A111: =Barcodes_old!A110+1 -> 2000108 | B111: *2000108*
A112: =Barcodes_old!A111+1 -> 2000109 | B112: *2000109*
A113: =Barcodes_old!A112+1 -> 2000110 | B113: *2000110*
A114: =Barcodes_old!A113+1 -> 2000111 | B114: *2000111*
A115: =Barcodes_old!A114+1 -> 2000112 | B115: *2000112*
A116: =Barcodes_old!A115+1 -> 2000113 | B116: *2000113*
A117: =Barcodes_old!A116+1 -> 2000114 | B117: *2000114*
A118: =Barcodes_old!A117+1 -> 2000115 | B118: *2000115*
A119: =Barcodes_old!A118+1 -> 2000116 | B119: *2000116*
A120: =Barcodes_old!A119+1 -> 2000117 | B120: *2000117*
A121: =Barcodes_old!A120+1 -> 2000118 | B121: *2000118*
A122: =Barcodes_old!A121+1 -> 2000119 | B122: *2000119*
A123: =Barcodes_old!A122+1 -> 2000120 | B123: *2000120* | H123: =C123 -> 0 | I123: =D123 -> 0 | J123: 0
A124: =Barcodes_old!A123+1 -> 2000121 | B124: *2000121* | H124: 0 | I124: 0 | J124: 0
A125: =Barcodes_old!A124+1 -> 2000122 | B125: *2000122* | H125: 0 | I125: 0 | J125: 0
A126: =Barcodes_old!A125+1 -> 2000123 | B126: *2000123* | H126: 0 | I126: 0 | J126: 0
A127: =Barcodes_old!A126+1 -> 2000124 | B127: *2000124* | H127: 0 | I127: 0 | J127: 0
A128: =Barcodes_old!A127+1 -> 2000125 | B128: *2000125*
A129: =Barcodes_old!A128+1 -> 2000126 | B129: *2000126*
A130: =Barcodes_old!A129+1 -> 2000127 | B130: *2000127*
A131: =Barcodes_old!A130+1 -> 2000128 | B131: *2000128*
A132: =Barcodes_old!A131+1 -> 2000129 | B132: *2000129*
A133: =Barcodes_old!A132+1 -> 2000130 | B133: *2000130* | H133: =C133 -> 0 | I133: =D133 -> 0 | J133: 0
A134: =Barcodes_old!A133+1 -> 2000131 | B134: *2000131* | H134: 0 | I134: 0 | J134: 0
A135: =Barcodes_old!A134+1 -> 2000132 | B135: *2000132* | H135: 0 | I135: 0 | J135: 0
A136: =Barcodes_old!A135+1 -> 2000133 | B136: *2000133* | H136: 0 | I136: 0 | J136: 0
A137: =Barcodes_old!A136+1 -> 2000134 | B137: *2000134* | H137: 0 | I137: 0 | J137: 0
A138: =Barcodes_old!A137+1 -> 2000135 | B138: *2000135* | H138: 0 | I138: 0 | J138: 0
A139: =Barcodes_old!A138+1 -> 2000136 | B139: *2000136* | H139: 0 | I139: 0 | J139: 0
A140: =Barcodes_old!A139+1 -> 2000137 | B140: *2000137* | H140: 0 | I140: 0 | J140: 0
A141: =Barcodes_old!A140+1 -> 2000138 | B141: *2000138*
A142: =Barcodes_old!A141+1 -> 2000139 | B142: *2000139*
A143: =Barcodes_old!A142+1 -> 2000140 | B143: *2000140* | H143: =C143 -> 0 | I143: =D143 -> 0 | J143: 0
A144: =Barcodes_old!A143+1 -> 2000141 | B144: *2000141* | H144: 0 | I144: 0 | J144: 0
A145: =Barcodes_old!A144+1 -> 2000142 | B145: *2000142* | H145: 0 | I145: 0 | J145: 0
A146: =Barcodes_old!A145+1 -> 2000143 | B146: *2000143* | H146: 0 | I146: 0 | J146: 0
A147: =Barcodes_old!A146+1 -> 2000144 | B147: *2000144*
A148: =Barcodes_old!A147+1 -> 2000145 | B148: *2000145*
A149: =Barcodes_old!A148+1 -> 2000146 | B149: *2000146*
A150: =Barcodes_old!A149+1 -> 2000147 | B150: *2000147*
A151: =Barcodes_old!A150+1 -> 2000148 | B151: *2000148*
A152: =Barcodes_old!A151+1 -> 2000149 | B152: *2000149*
A153: =Barcodes_old!A152+1 -> 2000150 | B153: *2000150*
A154: =Barcodes_old!A153+1 -> 2000151 | B154: *2000151*
A155: =Barcodes_old!A154+1 -> 2000152 | B155: *2000152*
A156: =Barcodes_old!A155+1 -> 2000153 | B156: *2000153*
A157: =Barcodes_old!A156+1 -> 2000154 | B157: *2000154*
A158: =Barcodes_old!A157+1 -> 2000155 | B158: *2000155*
A159: =Barcodes_old!A158+1 -> 2000156 | B159: *2000156*
A160: =Barcodes_old!A159+1 -> 2000157 | B160: *2000157*
A161: =Barcodes_old!A160+1 -> 2000158 | B161: *2000158*
A162: =Barcodes_old!A161+1 -> 2000159 | B162: *2000159*
A163: =Barcodes_old!A162+1 -> 2000160 | B163: *2000160*
A164: =Barcodes_old!A163+1 -> 2000161 | B164: *2000161*
A165: =Barcodes_old!A164+1 -> 2000162 | B165: *2000162*
A166: =Barcodes_old!A165+1 -> 2000163 | B166: *2000163*
A167: =Barcodes_old!A166+1 -> 2000164 | B167: *2000164*
A168: =Barcodes_old!A167+1 -> 2000165 | B168: *2000165*
A169: =Barcodes_old!A168+1 -> 2000166 | B169: *2000166*
A170: =Barcodes_old!A169+1 -> 2000167 | B170: *2000167*
A171: =Barcodes_old!A170+1 -> 2000168 | B171: *2000168*
A172: =Barcodes_old!A171+1 -> 2000169 | B172: *2000169*
A173: =Barcodes_old!A172+1 -> 2000170 | B173: *2000170*
A174: =Barcodes_old!A173+1 -> 2000171 | B174: *2000171*
A175: =Barcodes_old!A174+1 -> 2000172 | B175: *2000172* | H175: =C175 -> 0 | I175: =D175 -> 0 | J175: 0
A176: =Barcodes_old!A175+1 -> 2000173 | B176: *2000173* | H176: 0 | I176: 0 | J176: 0
A177: =Barcodes_old!A176+1 -> 2000174 | B177: *2000174* | H177: 0 | I177: 0 | J177: 0
A178: =Barcodes_old!A177+1 -> 2000175 | B178: *2000175* | H178: 0 | I178: 0 | J178: 0
A179: =Barcodes_old!A178+1 -> 2000176 | B179: *2000176*
A180: =Barcodes_old!A179+1 -> 2000177 | B180: *2000177* | H180: =C180 -> 0 | I180: =D180 -> 0 | J180: 0
A181: =Barcodes_old!A180+1 -> 2000178 | B181: *2000178* | H181: 0 | I181: 0 | J181: 0
A182: =Barcodes_old!A181+1 -> 2000179 | B182: *2000179* | H182: 0 | I182: 0 | J182: 0
A183: =Barcodes_old!A182+1 -> 2000180 | B183: *2000180* | H183: 0 | I183: 0 | J183: 0
A184: =Barcodes_old!A183+1 -> 2000181 | B184: *2000181*
A185: =Barcodes_old!A184+1 -> 2000182 | B185: *2000182*
A186: =Barcodes_old!A185+1 -> 2000183 | B186: *2000183* | H186: =C186 -> 0 | I186: =D186 -> 0 | J186: 0
A187: =Barcodes_old!A186+1 -> 2000184 | B187: *2000184* | H187: 0 | I187: 0 | J187: 0
A188: =Barcodes_old!A187+1 -> 2000185 | B188: *2000185* | H188: 0 | I188: 0 | J188: 0
A189: =Barcodes_old!A188+1 -> 2000186 | B189: *2000186* | H189: 0 | I189: 0 | J189: 0
A190: =Barcodes_old!A189+1 -> 2000187 | B190: *2000187*
A191: =Barcodes_old!A190+1 -> 2000188 | B191: *2000188*
A192: =Barcodes_old!A191+1 -> 2000189 | B192: *2000189*
A193: =Barcodes_old!A192+1 -> 2000190 | B193: *2000190*
A194: =Barcodes_old!A193+1 -> 2000191 | B194: *2000191*
A195: =Barcodes_old!A194+1 -> 2000192 | B195: *2000192* | H195: =C195 -> 0 | I195: =D195 -> 0 | J195: 0
A196: =Barcodes_old!A195+1 -> 2000193 | B196: *2000193* | H196: 0 | I196: 0 | J196: 0
A197: =Barcodes_old!A196+1 -> 2000194 | B197: *2000194* | H197: 0 | I197: 0 | J197: 0
A198: =Barcodes_old!A197+1 -> 2000195 | B198: *2000195* | H198: 0 | I198: 0 | J198: 0
A199: =Barcodes_old!A198+1 -> 2000196 | B199: *2000196* | H199: 0 | I199: 0 | J199: 0
A200: =Barcodes_old!A199+1 -> 2000197 | B200: *2000197* | H200: 0 | I200: 0 | J200: 0
... 31 more rows

Sheet Stickers
B2: =Barcodes!B1 -> *2000006* | E2: =B2 -> *2000006* | H2: =B2 -> *2000006*
A3: =Barcodes!C1 -> Feature Sandwich - 7.49 | D3: =$A$3 -> Feature Sandwich - 7.49 | G3: =$A$3 -> Feature Sandwich - 7.49
B5: =B2 -> *2000006* | E5: =B2 -> *2000006* | H5: =B2 -> *2000006*
A6: =$A$3 -> Feature Sandwich - 7.49 | D6: =$A$3 -> Feature Sandwich - 7.49 | G6: =$A$3 -> Feature Sandwich - 7.49
B8: =B5 -> *2000006* | E8: =E5 -> *2000006* | H8: =H5 -> *2000006*
A9: =$A$3 -> Feature Sandwich - 7.49 | D9: =$A$3 -> Feature Sandwich - 7.49 | G9: =$A$3 -> Feature Sandwich - 7.49
B11: =B8 -> *2000006* | E11: =E8 -> *2000006* | H11: =H8 -> *2000006*
A12: =$A$3 -> Feature Sandwich - 7.49 | D12: =$A$3 -> Feature Sandwich - 7.49 | G12: =$A$3 -> Feature Sandwich - 7.49
B14: =B11 -> *2000006* | E14: =E11 -> *2000006* | H14: =H11 -> *2000006*
A15: =$A$3 -> Feature Sandwich - 7.49 | D15: =$A$3 -> Feature Sandwich - 7.49 | G15: =$A$3 -> Feature Sandwich - 7.49
B17: =B14 -> *2000006* | E17: =E14 -> *2000006* | H17: =H14 -> *2000006*
A18: =$A$3 -> Feature Sandwich - 7.49 | D18: =$A$3 -> Feature Sandwich - 7.49 | G18: =$A$3 -> Feature Sandwich - 7.49
B20: =B17 -> *2000006* | E20: =E17 -> *2000006* | H20: =H17 -> *2000006*
A21: =$A$3 -> Feature Sandwich - 7.49 | D21: =$A$3 -> Feature Sandwich - 7.49 | G21: =$A$3 -> Feature Sandwich - 7.49
B23: =B2 -> *2000006* | E23: =B2 -> *2000006* | H23: =H20 -> *2000006*
A24: =$A$3 -> Feature Sandwich - 7.49 | D24: =$A$3 -> Feature Sandwich - 7.49 | G24: =$A$3 -> Feature Sandwich - 7.49
B26: =B23 -> *2000006* | E26: =E23 -> *2000006* | H26: =H23 -> *2000006*
A27: =$A$3 -> Feature Sandwich - 7.49 | D27: =$A$3 -> Feature Sandwich - 7.49 | G27: =$A$3 -> Feature Sandwich - 7.49
B29: =B26 -> *2000006* | E29: =E26 -> *2000006* | H29: =H26 -> *2000006*
A30: =$A$3 -> Feature Sandwich - 7.49 | D30: =$A$3 -> Feature Sandwich - 7.49 | G30: =$A$3 -> Feature Sandwich - 7.49

Sheet Slips
A1: =Barcodes_old!C1 -> Sashimi Salad 11.10 | B1: =Barcodes_old!B1 -> *2000016* | D1: =A1 -> Sashimi Salad 11.10 | E1: =B1 -> *2000016* | G1: =A1 -> Sashimi Salad 11.10 | H1: =B1 -> *2000016* | J1: =A1 -> Sashimi Salad 11.10 | K1: =B1 -> *2000016*
A3: =A1 -> Sashimi Salad 11.10 | B3: =B1 -> *2000016* | D3: =A1 -> Sashimi Salad 11.10 | E3: =B1 -> *2000016* | G3: =A1 -> Sashimi Salad 11.10 | H3: =B1 -> *2000016* | J3: =A1 -> Sashimi Salad 11.10 | K3: =B1 -> *2000016*
A5: =A3 -> Sashimi Salad 11.10 | B5: =B3 -> *2000016* | D5: =A3 -> Sashimi Salad 11.10 | E5: =B3 -> *2000016* | G5: =A3 -> Sashimi Salad 11.10 | H5: =B3 -> *2000016* | J5: =A3 -> Sashimi Salad 11.10 | K5: =B3 -> *2000016*
A7: =A5 -> Sashimi Salad 11.10 | B7: =B5 -> *2000016* | D7: =A5 -> Sashimi Salad 11.10 | E7: =B5 -> *2000016* | G7: =A5 -> Sashimi Salad 11.10 | H7: =B5 -> *2000016* | J7: =A5 -> Sashimi Salad 11.10 | K7: =B5 -> *2000016*
A9: =A7 -> Sashimi Salad 11.10 | B9: =B7 -> *2000016* | D9: =A7 -> Sashimi Salad 11.10 | E9: =B7 -> *2000016* | G9: =A7 -> Sashimi Salad 11.10 | H9: =B7 -> *2000016* | J9: =A7 -> Sashimi Salad 11.10 | K9: =B7 -> *2000016*
A11: =A9 -> Sashimi Salad 11.10 | B11: =B9 -> *2000016* | D11: =A9 -> Sashimi Salad 11.10 | E11: =B9 -> *2000016* | G11: =A9 -> Sashimi Salad 11.10 | H11: =B9 -> *2000016* | J11: =A9 -> Sashimi Salad 11.10 | K11: =B9 -> *2000016*
A13: =A11 -> Sashimi Salad 11.10 | B13: =B11 -> *2000016* | D13: =A11 -> Sashimi Salad 11.10 | E13: =B11 -> *2000016* | G13: =A11 -> Sashimi Salad 11.10 | H13: =B11 -> *2000016* | J13: =A11 -> Sashimi Salad 11.10 | K13: =B11 -> *2000016*
A15: =A13 -> Sashimi Salad 11.10 | B15: =B13 -> *2000016* | D15: =A13 -> Sashimi Salad 11.10 | E15: =B13 -> *2000016* | G15: =A13 -> Sashimi Salad 11.10 | H15: =B13 -> *2000016* | J15: =A13 -> Sashimi Salad 11.10 | K15: =B13 -> *2000016*

Sheet Dessert Stickers
A1: =Barcodes_old!C1 -> Sashimi Salad 11.10 | B1: =Barcodes_old!B1 -> *2000016* | D1: =A1 -> Sashimi Salad 11.10 | E1: =B1 -> *2000016* | G1: =D1 -> Sashimi Salad 11.10 | H1: =E1 -> *2000016* | J1: =G1 -> Sashimi Salad 11.10 | K1: =H1 -> *2000016*
A2: =A1 -> Sashimi Salad 11.10 | B2: =B1 -> *2000016* | D2: =D1 -> Sashimi Salad 11.10 | E2: =E1 -> *2000016* | G2: =D2 -> Sashimi Salad 11.10 | H2: =E2 -> *2000016* | J2: =G2 -> Sashimi Salad 11.10 | K2: =H2 -> *2000016*
A3: =A2 -> Sashimi Salad 11.10 | B3: =B2 -> *2000016* | D3: Sashimi Salad 11.10 | E3: *2000016* | G3: Sashimi Salad 11.10 | H3: *2000016* | J3: Sashimi Salad 11.10 | K3: *2000016*
A4: Sashimi Salad 11.10 | B4: *2000016* | D4: Sashimi Salad 11.10 | E4: *2000016* | G4: Sashimi Salad 11.10 | H4: *2000016* | J4: Sashimi Salad 11.10 | K4: *2000016*
A5: Sashimi Salad 11.10 | B5: *2000016* | D5: Sashimi Salad 11.10 | E5: *2000016* | G5: Sashimi Salad 11.10 | H5: *2000016* | J5: Sashimi Salad 11.10 | K5: *2000016*
A6: Sashimi Salad 11.10 | B6: *2000016* | D6: Sashimi Salad 11.10 | E6: *2000016* | G6: Sashimi Salad 11.10 | H6: *2000016* | J6: Sashimi Salad 11.10 | K6: *2000016*
A7: Sashimi Salad 11.10 | B7: *2000016* | D7: Sashimi Salad 11.10 | E7: *2000016* | G7: Sashimi Salad 11.10 | H7: *2000016* | J7: Sashimi Salad 11.10 | K7: *2000016*
A8: Sashimi Salad 11.10 | B8: *2000016* | D8: Sashimi Salad 11.10 | E8: *2000016* | G8: Sashimi Salad 11.10 | H8: *2000016* | J8: Sashimi Salad 11.10 | K8: *2000016*
A9: Sashimi Salad 11.10 | B9: *2000016* | D9: Sashimi Salad 11.10 | E9: *2000016* | G9: Sashimi Salad 11.10 | H9: *2000016* | J9: Sashimi Salad 11.10 | K9: *2000016*
A10: Sashimi Salad 11.10 | B10: *2000016* | D10: Sashimi Salad 11.10 | E10: *2000016* | G10: Sashimi Salad 11.10 | H10: *2000016* | J10: Sashimi Salad 11.10 | K10: *2000016*
A11: Sashimi Salad 11.10 | B11: *2000016* | D11: Sashimi Salad 11.10 | E11: *2000016* | G11: Sashimi Salad 11.10 | H11: *2000016* | J11: Sashimi Salad 11.10 | K11: *2000016*
A12: Sashimi Salad 11.10 | B12: *2000016* | D12: Sashimi Salad 11.10 | E12: *2000016* | G12: Sashimi Salad 11.10 | H12: *2000016* | J12: Sashimi Salad 11.10 | K12: *2000016*
A13: Sashimi Salad 11.10 | B13: *2000016* | D13: Sashimi Salad 11.10 | E13: *2000016* | G13: Sashimi Salad 11.10 | H13: *2000016* | J13: Sashimi Salad 11.10 | K13: *2000016*
A14: Sashimi Salad 11.10 | B14: *2000016* | D14: Sashimi Salad 11.10 | E14: *2000016* | G14: Sashimi Salad 11.10 | H14: *2000016* | J14: Sashimi Salad 11.10 | K14: *2000016*
A15: Sashimi Salad 11.10 | B15: *2000016* | D15: Sashimi Salad 11.10 | E15: *2000016* | G15: Sashimi Salad 11.10 | H15: *2000016* | J15: Sashimi Salad 11.10 | K15: *2000016*
A16: Sashimi Salad 11.10 | B16: *2000016* | D16: Sashimi Salad 11.10 | E16: *2000016* | G16: Sashimi Salad 11.10 | H16: *2000016* | J16: Sashimi Salad 11.10 | K16: *2000016*
A17: Sashimi Salad 11.10 | B17: *2000016* | D17: Sashimi Salad 11.10 | E17: *2000016* | G17: Sashimi Salad 11.10 | H17: *2000016* | J17: Sashimi Salad 11.10 | K17: *2000016*
A18: Sashimi Salad 11.10 | B18: *2000016* | D18: Sashimi Salad 11.10 | E18: *2000016* | G18: Sashimi Salad 11.10 | H18: *2000016* | J18: Sashimi Salad 11.10 | K18: *2000016*
A19: Sashimi Salad 11.10 | B19: *2000016* | D19: Sashimi Salad 11.10 | E19: *2000016* | G19: Sashimi Salad 11.10 | H19: *2000016* | J19: Sashimi Salad 11.10 | K19: *2000016*
A20: Sashimi Salad 11.10 | B20: *2000016* | D20: Sashimi Salad 11.10 | E20: *2000016* | G20: Sashimi Salad 11.10 | H20: *2000016* | J20: Sashimi Salad 11.10 | K20: *2000016*

Sheet Mashgin
B1: Image | C1: Name
C2: GG_1
C3: GG_2
C4: GG_3
C5: GG_4
C6: GG_5
C7: GG_6
C8: GG_7
C9: GG_8
C10: GG_9
C11: GG_10
C12: GG_11
C13: GG_12
C14: GG_13
C15: GG_14
C16: GG_15
C17: GG_16
C18: GG_17
C19: GG_18
C20: GG_19
C21: GG_20
C22: GG_21
C23: GG_22
C24: GG_23
C25: GG_24
C26: GG_25
C27: GG_26
C28: GG_27
C29: GG_28
C30: GG_29
C31: GG_30
C32: GG_31
C33: GG_32
C34: GG_33
C35: GG_34
C36: GG_35
C37: GG_36
C38: GG_37
C39: GG_38
C40: GG_39
C41: GG_40
C42: GG_41
C43: GG_42
C44: GG_43
C45: GG_44
C46: GG_45
C47: GG_46
C48: GG_47
C49: GG_48
C50: GG_49
C51: GG_50
C52: PLUS
C53: _1
C54: _1A
C55: _1B
C56: _2
C57: _2A
C58: _2B
C59: _2C
C60: _3
C61: _4
C62: _5
C63: _6
C64: _7
C65: _8
C66: _9
C67: _10
C68: _C1
C69: _C2
C70: _C3
C71: _C4
C72: _C5
C73: _C6
C74: _F1
C75: _F2
C76: _F3
C77: _F4
C78: _F5
C79: _F6
C80: _G1
C81: _G2
C82: _G3
C83: _G4
C84: _M1
C85: _M2
C86: _M3
C87: _M4
C88: _S1
C89: _S2
C90: _S3
C91: _S4
C92: _S5
C93: SIDE

Sheet Barcodes_old
A1: Print | B1: *2000016* | C1: Sashimi Salad 11.10
A2: SKU # | B2: Bar Code
A3: 2000000 | B3: *2000000* | C3: ChefSashi 12.65 | E3: For feedback, visit the corporate
A4: =Barcodes_old!A3+1 -> 2000001 | B4: *2000001* | C4: LG Combo 12.65 | E4: Services & Real Estate Website
A5: =Barcodes_old!A4+1 -> 2000002 | B5: *2000002* | C5: SL Combo 11.10
A6: =Barcodes_old!A5+1 -> 2000003 | B6: *2000003* | C6: Chirashi Bowl 11.10
A7: =Barcodes_old!A6+1 -> 2000004 | B7: *2000004* | C7: Roll #1 9.25
A8: =Barcodes_old!A7+1 -> 2000005 | B8: *2000005* | C8: Roll #2 11.10
A9: =Barcodes_old!A8+1 -> 2000006 | B9: *2000006* | C9: Sushi Roll 7.25
A10: =Barcodes_old!A9+1 -> 2000007 | B10: *2000007* | C10: Veg Roll 5.70
A11: =Barcodes_old!A10+1 -> 2000008 | B11: *2000008* | C11: 2 Rolls 13.35
A12: =Barcodes_old!A11+1 -> 2000009 | B12: *2000009* | C12: Vegan Sumashi 9.80
A13: =Barcodes_old!A12+1 -> 2000010 | B13: *2000010* | C13: Rpoke 11.30
A14: =Barcodes_old!A13+1 -> 2000011 | B14: *2000011*
A15: =Barcodes_old!A14+1 -> 2000012 | B15: *2000012* | C15: NI/SA PIECE 2.60 (__)
A16: =Barcodes_old!A15+1 -> 2000013 | B16: *2000013*
A17: =Barcodes_old!A16+1 -> 2000014 | B17: *2000014*
A18: =Barcodes_old!A17+1 -> 2000015 | B18: *2000015*
A19: =Barcodes_old!A18+1 -> 2000016 | B19: *2000016* | C19: Sashimi Salad 11.10
A20: =Barcodes_old!A19+1 -> 2000017 | B20: *2000017* | C20: Avocado 1.70
A21: =Barcodes_old!A20+1 -> 2000018 | B21: *2000018* | C21: Lpoke 14.15
A22: =Barcodes_old!A21+1 -> 2000019 | B22: *2000019*
A23: =Barcodes_old!A22+1 -> 2000020 | B23: *2000020* | C23: Shack $7.45
A24: =Barcodes_old!A23+1 -> 2000021 | B24: *2000021* | C24: Dbl Shack $10.65
A25: =Barcodes_old!A24+1 -> 2000022 | B25: *2000022* | C25: Shroom Shack $10.65
A26: =Barcodes_old!A25+1 -> 2000023 | B26: *2000023* | C26: Shack Stack $13.35
A27: =Barcodes_old!A26+1 -> 2000024 | B27: *2000024* | C27: Shack Fries $3.80
A28: =Barcodes_old!A27+1 -> 2000025 | B28: *2000025* | C28: Shack Combo $11.24
A29: =Barcodes_old!A28+1 -> 2000026 | B29: *2000026* | C29: Dbl Shack Combo $14.44
A30: =Barcodes_old!A29+1 -> 2000027 | B30: *2000027* | C30: Shroom Shack Combo $14.44
A31: =Barcodes_old!A30+1 -> 2000028 | B31: *2000028* | C31: Shack Stack Combo $17.10
A32: =Barcodes_old!A31+1 -> 2000029 | B32: *2000029*
A33: =Barcodes_old!A32+1 -> 2000030 | B33: *2000030*
A34: =Barcodes_old!A33+1 -> 2000031 | B34: *2000031*
A35: =Barcodes_old!A34+1 -> 2000032 | B35: *2000032* | C35: Action 9.60
A36: =Barcodes_old!A35+1 -> 2000033 | B36: *2000033*
A37: =Barcodes_old!A36+1 -> 2000034 | B37: *2000034* | C37: Global 9.60
A38: =Barcodes_old!A37+1 -> 2000035 | B38: *2000035*
A39: =Barcodes_old!A38+1 -> 2000036 | B39: *2000036*
A40: =Barcodes_old!A39+1 -> 2000037 | B40: *2000037*
A41: =Barcodes_old!A40+1 -> 2000038 | B41: *2000038*
A42: =Barcodes_old!A41+1 -> 2000039 | B42: *2000039*
A43: =Barcodes_old!A42+1 -> 2000040 | B43: *2000040*
A44: =Barcodes_old!A43+1 -> 2000041 | B44: *2000041* | C44: 9.75 iburger
A45: =Barcodes_old!A44+1 -> 2000042 | B45: *2000042*
A46: =Barcodes_old!A45+1 -> 2000043 | B46: *2000043*
A47: =Barcodes_old!A46+1 -> 2000044 | B47: *2000044*
A48: =Barcodes_old!A47+1 -> 2000045 | B48: *2000045*
A49: =Barcodes_old!A48+1 -> 2000046 | B49: *2000046*
A50: =Barcodes_old!A49+1 -> 2000047 | B50: *2000047*
A51: =Barcodes_old!A50+1 -> 2000048 | B51: *2000048*
A52: =Barcodes_old!A51+1 -> 2000049 | B52: *2000049*
A53: =Barcodes_old!A52+1 -> 2000050 | B53: *2000050*
A54: =Barcodes_old!A53+1 -> 2000051 | B54: *2000051*
A55: =Barcodes_old!A54+1 -> 2000052 | B55: *2000052*
A56: =Barcodes_old!A55+1 -> 2000053 | B56: *2000053*
A57: =Barcodes_old!A56+1 -> 2000054 | B57: *2000054*
A58: =Barcodes_old!A57+1 -> 2000055 | B58: *2000055*
A59: =Barcodes_old!A58+1 -> 2000056 | B59: *2000056*
A60: =Barcodes_old!A59+1 -> 2000057 | B60: *2000057*
A61: =Barcodes_old!A60+1 -> 2000058 | B61: *2000058*
A62: =Barcodes_old!A61+1 -> 2000059 | B62: *2000059*
A63: =Barcodes_old!A62+1 -> 2000060 | B63: *2000060*
A64: =Barcodes_old!A63+1 -> 2000061 | B64: *2000061*
A65: =Barcodes_old!A64+1 -> 2000062 | B65: *2000062*
A66: =Barcodes_old!A65+1 -> 2000063 | B66: *2000063*
A67: =Barcodes_old!A66+1 -> 2000064 | B67: *2000064*
A68: =Barcodes_old!A67+1 -> 2000065 | B68: *2000065*
A69: =Barcodes_old!A68+1 -> 2000066 | B69: *2000066*
A70: =Barcodes_old!A69+1 -> 2000067 | B70: *2000067*
A71: =Barcodes_old!A70+1 -> 2000068 | B71: *2000068* | C71: 11.99 Salsa
A72: =Barcodes_old!A71+1 -> 2000069 | B72: *2000069* | C72: 13.99 Salsa
A73: =Barcodes_old!A72+1 -> 2000070 | B73: *2000070* | C73: 3.50 Salsa
A74: =Barcodes_old!A73+1 -> 2000071 | B74: *2000071*
A75: =Barcodes_old!A74+1 -> 2000072 | B75: *2000072*
A76: =Barcodes_old!A75+1 -> 2000073 | B76: *2000073*
A77: =Barcodes_old!A76+1 -> 2000074 | B77: *2000074*
A78: =Barcodes_old!A77+1 -> 2000075 | B78: *2000075*
A79: =Barcodes_old!A78+1 -> 2000076 | B79: *2000076*
A80: =Barcodes_old!A79+1 -> 2000077 | B80: *2000077*
A81: =Barcodes_old!A80+1 -> 2000078 | B81: *2000078*
A82: =Barcodes_old!A81+1 -> 2000079 | B82: *2000079*
A83: =Barcodes_old!A82+1 -> 2000080 | B83: *2000080*
A84: =Barcodes_old!A83+1 -> 2000081 | B84: *2000081*
A85: =Barcodes_old!A84+1 -> 2000082 | B85: *2000082*
A86: =Barcodes_old!A85+1 -> 2000083 | B86: *2000083*
A87: =Barcodes_old!A86+1 -> 2000084 | B87: *2000084*
A88: =Barcodes_old!A87+1 -> 2000085 | B88: *2000085*
A89: =Barcodes_old!A88+1 -> 2000086 | B89: *2000086*
A90: =Barcodes_old!A89+1 -> 2000087 | B90: *2000087*
A91: =Barcodes_old!A90+1 -> 2000088 | B91: *2000088* | C91: RA Kitchen Sandwich
A92: =Barcodes_old!A91+1 -> 2000089 | B92: *2000089*
A93: =Barcodes_old!A92+1 -> 2000090 | B93: *2000090*
A94: =Barcodes_old!A93+1 -> 2000091 | B94: *2000091*
A95: =Barcodes_old!A94+1 -> 2000092 | B95: *2000092*
A96: =Barcodes_old!A95+1 -> 2000093 | B96: *2000093*
A97: =Barcodes_old!A96+1 -> 2000094 | B97: *2000094*
A98: =Barcodes_old!A97+1 -> 2000095 | B98: *2000095*
A99: =Barcodes_old!A98+1 -> 2000096 | B99: *2000096*
A100: =Barcodes_old!A99+1 -> 2000097 | B100: *2000097*
A101: =Barcodes_old!A100+1 -> 2000098 | B101: *2000098*
A102: =Barcodes_old!A101+1 -> 2000099 | B102: *2000099*
A103: =Barcodes_old!A102+1 -> 2000100 | B103: *2000100*
A104: =Barcodes_old!A103+1 -> 2000101 | B104: *2000101*
A105: =Barcodes_old!A104+1 -> 2000102 | B105: *2000102*
A106: =Barcodes_old!A105+1 -> 2000103 | B106: *2000103*
A107: =Barcodes_old!A106+1 -> 2000104 | B107: *2000104*
A108: =Barcodes_old!A107+1 -> 2000105 | B108: *2000105*
A109: =Barcodes_old!A108+1 -> 2000106 | B109: *2000106*
A110: =Barcodes_old!A109+1 -> 2000107 | B110: *2000107*
A111: =Barcodes_old!A110+1 -> 2000108 | B111: *2000108*
A112: =Barcodes_old!A111+1 -> 2000109 | B112: *2000109*
A113: =Barcodes_old!A112+1 -> 2000110 | B113: *2000110*
A114: =Barcodes_old!A113+1 -> 2000111 | B114: *2000111*
A115: =Barcodes_old!A114+1 -> 2000112 | B115: *2000112*
A116: =Barcodes_old!A115+1 -> 2000113 | B116: *2000113*
A117: =Barcodes_old!A116+1 -> 2000114 | B117: *2000114*
A118: =Barcodes_old!A117+1 -> 2000115 | B118: *2000115*
A119: =Barcodes_old!A118+1 -> 2000116 | B119: *2000116*
A120: =Barcodes_old!A119+1 -> 2000117 | B120: *2000117*
A121: =Barcodes_old!A120+1 -> 2000118 | B121: *2000118*
A122: =Barcodes_old!A121+1 -> 2000119 | B122: *2000119*
A123: =Barcodes_old!A122+1 -> 2000120 | B123: *2000120* | C123: 7.60.
A124: =Barcodes_old!A123+1 -> 2000121 | B124: *2000121* | C124: 5.95
A125: =Barcodes_old!A124+1 -> 2000122 | B125: *2000122* | C125: 7.35
A126: =Barcodes_old!A125+1 -> 2000123 | B126: *2000123* | C126: 8.25
A127: =Barcodes_old!A126+1 -> 2000124 | B127: *2000124* | C127: 2.95
A128: =Barcodes_old!A127+1 -> 2000125 | B128: *2000125*
A129: =Barcodes_old!A128+1 -> 2000126 | B129: *2000126*
A130: =Barcodes_old!A129+1 -> 2000127 | B130: *2000127*
A131: =Barcodes_old!A130+1 -> 2000128 | B131: *2000128*
A132: =Barcodes_old!A131+1 -> 2000129 | B132: *2000129*
A133: =Barcodes_old!A132+1 -> 2000130 | B133: *2000130* | C133: Discount Dessert 1.10
A134: =Barcodes_old!A133+1 -> 2000131 | B134: *2000131* | C134: Cookie .95
A135: =Barcodes_old!A134+1 -> 2000132 | B135: *2000132* | C135: Dessert 2.95
A136: =Barcodes_old!A135+1 -> 2000133 | B136: *2000133* | C136: Dessert 3.90
A137: =Barcodes_old!A136+1 -> 2000134 | B137: *2000134* | C137: Dessert 1.45
A138: =Barcodes_old!A137+1 -> 2000135 | B138: *2000135* | C138: Dessert 2.90
A139: =Barcodes_old!A138+1 -> 2000136 | B139: *2000136* | C139: Dessert 2.35
A140: =Barcodes_old!A139+1 -> 2000137 | B140: *2000137* | C140: Dessert 2.15
A141: =Barcodes_old!A140+1 -> 2000138 | B141: *2000138*
A142: =Barcodes_old!A141+1 -> 2000139 | B142: *2000139*
A143: =Barcodes_old!A142+1 -> 2000140 | B143: *2000140* | C143: Toum 10.95
A144: =Barcodes_old!A143+1 -> 2000141 | B144: *2000141* | C144: Toum 11.95
A145: =Barcodes_old!A144+1 -> 2000142 | B145: *2000142* | C145: Toum 12.95
A146: =Barcodes_old!A145+1 -> 2000143 | B146: *2000143* | C146: Toum 15.95
A147: =Barcodes_old!A146+1 -> 2000144 | B147: *2000144*
A148: =Barcodes_old!A147+1 -> 2000145 | B148: *2000145*
A149: =Barcodes_old!A148+1 -> 2000146 | B149: *2000146*
A150: =Barcodes_old!A149+1 -> 2000147 | B150: *2000147*
A151: =Barcodes_old!A150+1 -> 2000148 | B151: *2000148*
A152: =Barcodes_old!A151+1 -> 2000149 | B152: *2000149*
A153: =Barcodes_old!A152+1 -> 2000150 | B153: *2000150*
A154: =Barcodes_old!A153+1 -> 2000151 | B154: *2000151*
A155: =Barcodes_old!A154+1 -> 2000152 | B155: *2000152*
A156: =Barcodes_old!A155+1 -> 2000153 | B156: *2000153*
A157: =Barcodes_old!A156+1 -> 2000154 | B157: *2000154*
A158: =Barcodes_old!A157+1 -> 2000155 | B158: *2000155*
A159: =Barcodes_old!A158+1 -> 2000156 | B159: *2000156*
A160: =Barcodes_old!A159+1 -> 2000157 | B160: *2000157*
A161: =Barcodes_old!A160+1 -> 2000158 | B161: *2000158*
A162: =Barcodes_old!A161+1 -> 2000159 | B162: *2000159*
A163: =Barcodes_old!A162+1 -> 2000160 | B163: *2000160*
A164: =Barcodes_old!A163+1 -> 2000161 | B164: *2000161*
A165: =Barcodes_old!A164+1 -> 2000162 | B165: *2000162*
A166: =Barcodes_old!A165+1 -> 2000163 | B166: *2000163*
A167: =Barcodes_old!A166+1 -> 2000164 | B167: *2000164*
A168: =Barcodes_old!A167+1 -> 2000165 | B168: *2000165*
A169: =Barcodes_old!A168+1 -> 2000166 | B169: *2000166*
A170: =Barcodes_old!A169+1 -> 2000167 | B170: *2000167*
A171: =Barcodes_old!A170+1 -> 2000168 | B171: *2000168*
A172: =Barcodes_old!A171+1 -> 2000169 | B172: *2000169*
A173: =Barcodes_old!A172+1 -> 2000170 | B173: *2000170*
A174: =Barcodes_old!A173+1 -> 2000171 | B174: *2000171*
A175: =Barcodes_old!A174+1 -> 2000172 | B175: *2000172* | C175: 11.90 Saffron
A176: =Barcodes_old!A175+1 -> 2000173 | B176: *2000173* | C176: 13.90 Saffron
A177: =Barcodes_old!A176+1 -> 2000174 | B177: *2000174* | C177: 2.00 Saffron
A178: =Barcodes_old!A177+1 -> 2000175 | B178: *2000175* | C178: 4.00 Saffron
A179: =Barcodes_old!A178+1 -> 2000176 | B179: *2000176*
A180: =Barcodes_old!A179+1 -> 2000177 | B180: *2000177* | C180: Bing 9.95
A181: =Barcodes_old!A180+1 -> 2000178 | B181: *2000178* | C181: Bing 11.95
A182: =Barcodes_old!A181+1 -> 2000179 | B182: *2000179* | C182: Bing 12.95
A183: =Barcodes_old!A182+1 -> 2000180 | B183: *2000180* | C183: Bing 4.95
A184: =Barcodes_old!A183+1 -> 2000181 | B184: *2000181*
A185: =Barcodes_old!A184+1 -> 2000182 | B185: *2000182*
A186: =Barcodes_old!A185+1 -> 2000183 | B186: *2000183* | C186: TABIB 11.95
A187: =Barcodes_old!A186+1 -> 2000184 | B187: *2000184* | C187: TABIB 10.95
A188: =Barcodes_old!A187+1 -> 2000185 | B188: *2000185* | C188: TABIB 9.95
A189: =Barcodes_old!A188+1 -> 2000186 | B189: *2000186* | C189: TABIB 2.50
A190: =Barcodes_old!A189+1 -> 2000187 | B190: *2000187*
A191: =Barcodes_old!A190+1 -> 2000188 | B191: *2000188*
A192: =Barcodes_old!A191+1 -> 2000189 | B192: *2000189*
A193: =Barcodes_old!A192+1 -> 2000190 | B193: *2000190*
A194: =Barcodes_old!A193+1 -> 2000191 | B194: *2000191*
A195: =Barcodes_old!A194+1 -> 2000192 | B195: *2000192* | C195: 5.25 CS
A196: =Barcodes_old!A195+1 -> 2000193 | B196: *2000193* | C196: 4.75 CS
A197: =Barcodes_old!A196+1 -> 2000194 | B197: *2000194* | C197: 6.25 CS
A198: =Barcodes_old!A197+1 -> 2000195 | B198: *2000195* | C198: 5.50 CS/RS
A199: =Barcodes_old!A198+1 -> 2000196 | B199: *2000196* | C199: 5.00 CS
A200: =Barcodes_old!A199+1 -> 2000197 | B200: *2000197* | C200: 4.00 CS
... 31 more rows

Sheet Sheet3
A1: Veggie Omelette 3.45 | B1: _1 | C1: 1
A2: Shack $7.45 | B2: _1 | C2: 2
A3: extra cheese 1.20 | B3: _10 | C3: 1
A4: NEW SHACK ITEM | B4: _10 | C4: 2
A5: Action 9.60 | B5: _1A | C5: 0
A6: Global 9.60 | B6: _1B | C6: 0
A7: Stuffed Omelette 4.70 | B7: _2 | C7: 1
A8: Dbl Shack $10.65 | B8: _2 | C8: 2
A9: 11.99 Salsa | B9: _2A | C9: 0
A10: 13.99 Salsa | B10: _2B | C10: 0
A11: 3.50 Salsa | B11: _2C | C11: 0
A12: Che/Veg omelette 3.45 | B12: _3 | C12: 1
A13: Shroom Shack $10.65 | B13: _3 | C13: 2
A14: bs #1 3.70 | B14: _4 | C14: 1
A15: Shack Stack $13.35 | B15: _4 | C15: 2
A16: bs #2 4.40 | B16: _5 | C16: 1
A17: Shack Fries $3.80 | B17: _5 | C17: 2
A18: egg 1.25 | B18: _6 | C18: 1
A19: Shack Combo $11.24 | B19: _6 | C19: 2
A20: side protein 1.70 | B20: _7 | C20: 1
A21: Dbl Shack Combo $14.44 | B21: _7 | C21: 2
A22: One Pancake 1.10 | B22: _8 | C22: 1
A23: Shroom Shack Combo $14.44 | B23: _8 | C23: 2
A24: French Toast (2) 4.60 | B24: _9 | C24: 1
A25: Shack Stack Combo $17.10 | B25: _9 | C25: 2
A26: 9.75 iburger | B26: _C1 | C26: 0
A27: RA Kitchen Sandwich | B27: _C2 | C27: 0
A28: Discount Dessert 1.10 | B28: _C3 | C28: 0
A29: Cookie .95 | B29: _C4 | C29: 0
A30: Dessert 2.95 | B30: _C6 | C30: 0
A31: Restaurant Partner 1 | B31: _F1 | C31: 2
A32: Restaurant Partner 2 | B32: _F2 | C32: 2
A33: Restaurant Partner 3 | B33: _F3 | C33: 2
A34: Restaurant Partner 4 | B34: _F4 | C34: 2
A35: Restaurant Partner 5 | B35: _F5 | C35: 2
A36: Restaurant Partner 6 | B36: _F6 | C36: 2
A37: Dessert 3.90 | B37: _G1 | C37: 0
A38: Dessert 1.45 | B38: _G2 | C38: 0
A39: Dessert 2.90 | B39: _G3 | C39: 0
A40: Dessert 2.35 | B40: _G4 | C40: 0
A41: PB&J 4.00 | B41: _M1 | C41: 0
A42: Ham 6.15 | B42: _M2 | C42: 0
A43: Turkey 6.15 | B43: _M3 | C43: 0
A44: Tuna 6.10 | B44: _M4 | C44: 0
A45: 7.60. | B45: _S1 | C45: 0
A46: 5.95 | B46: _S2 | C46: 0
A47: 7.35 | B47: _S3 | C47: 0
A48: 8.25 | B48: _S4 | C48: 0
A49: 2.95 | B49: _S5 | C49: 0
A50: Dessert 2.15 | B50: GG_1 | C50: 0
A51: Bing 9.95 | B51: GG_10 | C51: 0
A52: Bing 11.95 | B52: GG_11 | C52: 0
A53: Bing 12.95 | B53: GG_12 | C53: 0
A54: Bing 4.95 | B54: GG_13 | C54: 0
A55: TABIB 11.95 | B55: GG_14 | C55: 0
A56: TABIB 10.95 | B56: GG_15 | C56: 0
A57: TABIB 9.95 | B57: GG_16 | C57: 0
A58: TABIB 2.50 | B58: GG_17 | C58: 0
A59: 5.25 CS | B59: GG_18 | C59: 0
A60: 4.75 CS | B60: GG_19 | C60: 0
A61: Toum 10.95 | B61: GG_2 | C61: 0
A62: 6.25 CS | B62: GG_20 | C62: 0
A63: 5.50 CS/RS | B63: GG_21 | C63: 0
A64: 5.00 CS | B64: GG_22 | C64: 0
A65: 4.00 CS | B65: GG_23 | C65: 0
A66: ChefSashi 12.65 | B66: GG_24 | C66: 0
A67: LG Combo 12.65 | B67: GG_25 | C67: 0
A68: SL Combo 11.10 | B68: GG_26 | C68: 0
A69: Chirashi Bowl 11.10 | B69: GG_27 | C69: 0
A70: Roll #1 9.25 | B70: GG_28 | C70: 0
A71: Roll #2 11.10 | B71: GG_29 | C71: 0
A72: Toum 11.95 | B72: GG_3 | C72: 0
A73: Sushi Roll 7.25 | B73: GG_30 | C73: 0
A74: Veg Roll 5.70 | B74: GG_31 | C74: 0
A75: 2 Rolls 13.35 | B75: GG_32 | C75: 0
A76: Vegan Sumashi 9.80 | B76: GG_33 | C76: 0
A77: Rpoke 11.30 | B77: GG_34 | C77: 0
A78: NI/SA PIECE 2.60 (__) | B78: GG_35 | C78: 0
A79: Sashimi Salad 11.10 | B79: GG_36 | C79: 0
A80: Avocado 1.70 | B80: GG_37 | C80: 0
A81: Lpoke 14.15 | B81: GG_38 | C81: 0
A82: Toum 12.95 | B82: GG_4 | C82: 0
A83: Toum 15.95 | B83: GG_5 | C83: 0
A84: 11.90 Saffron | B84: GG_6 | C84: 0
A85: 13.90 Saffron | B85: GG_7 | C85: 0
A86: 2.00 Saffron | B86: GG_8 | C86: 0
A87: 4.00 Saffron | B87: GG_9 | C87: 0
